bitfinex/quotes_ETHUSD_20250219
["timestamp","ask_amount","ask_price","bid_price","bid_amount"]
[1739927642891,3.21456028,2670.3,2670.0,0.02457699]
[1739927643108,3.74517,2670.1,2670.0,0.02457699]
[1739927644296,17.68112,2670.2,2670.0,0.02457699]
[1739927644614,13.141,2670.2,2670.0,0.02457699]
[1739927645114,3.21456028,2670.3,2670.1,0.10516344]
[1739927645422,16.08564238,2670.6,2670.1,0.10516344]
[1739927645784,3.74468,2670.5,2670.1,0.10516344]
[1739927646312,10.28465662,2670.6,2670.1,0.10516344]
[1739927646485,3.21651238,2670.6,2670.1,7.59527344]
[1739927646679,3.74421,2670.8,2670.1,3.85021344]
[1739927646904,3.74421,2670.8,2670.1,4.68892348]
[1739927647611,3.74435,2670.7,2670.1,4.68892348]
[1739927647997,3.74462,2670.5,2670.1,0.10516344]
[1739927648372,6.96149238,2670.3,2670.1,0.10516344]
[1739927649168,3.74503,2670.2,2670.1,0.10516344]
[1739927649527,6.96149238,2670.3,2670.1,0.10516344]
[1739927649528,10.70650238,2670.3,2670.1,0.10516344]
[1739927649761,3.21651238,2670.6,2670.1,0.91596344]
[1739927649934,0.805,2670.8,2670.1,5.12963148]
[1739927649935,7.76579238,2670.8,2670.1,5.12963148]
[1739927650256,3.21651238,2670.8,2670.3,3.74481]
[1739927650556,6.96071238,2670.8,2670.3,3.74481]
[1739927650760,6.96071238,2670.8,2670.4,0.10640634]
[1739927651118,6.96071238,2670.8,2670.1,5.02447804]
[1739927651322,6.96071238,2670.8,2670.5,0.10633505]
[1739927651323,3.74457,2670.6,2670.5,0.10633505]
[1739927651533,3.74462,2670.5,2670.1,0.8108]
[1739927651939,3.21651238,2670.6,2670.1,4.55595]
[1739927652166,6.96108238,2670.6,2670.2,0.10654893]
[1739927652369,3.74479,2670.4,2670.2,0.10654893]
[1739927652569,3.74467,2670.5,2670.2,0.10654893]
[1739927653368,6.96140238,2670.3,2670.2,0.10654893]
[1739927653751,3.74507,2670.2,2670.0,0.02457699]
[1739927655585,6.96141238,2670.3,2670.0,0.02457699]
[1739927655943,16.88612,2670.2,2670.0,0.02457699]
[1739927656275,13.141,2670.2,2670.0,0.02457699]
[1739927657586,3.21651238,2670.3,2670.0,0.02457699]
[1739927658157,6.96142238,2670.3,2670.0,0.02457699]
[1739927658775,3.21651238,2670.3,2670.0,0.02457699]
[1739927659941,6.96140238,2670.3,2670.0,0.02457699]
[1739927660701,3.21651238,2670.3,2670.0,0.02457699]
[1739927661279,6.96146238,2670.3,2670.0,0.02457699]
[1739927662507,3.21651238,2670.3,2670.0,0.02457699]
[1739927663506,6.96141238,2670.3,2670.0,0.02457699]
[1739927663692,8.10164544,2670.3,2670.0,0.02457699]
[1739927663895,4.35674544,2670.3,2670.0,0.02457699]
[1739927664673,8.10164544,2670.3,2670.0,0.02457699]
[1739927664871,3.74505,2670.2,2670.0,0.02457699]
[1739927665111,4.35674544,2670.3,2670.0,0.02457699]
[1739927665315,4.35674544,2670.3,2670.1,0.10676469]
[1739927665608,13.141,2670.2,2670.1,0.10676469]
[1739927667718,25.76209854,2670.2,2670.1,0.10676469]
[1739927667932,4.29517,2670.1,2670.0,0.02457699]
[1739927668140,5.11697,2670.1,2670.0,0.02457699]
[1739927668280,3.74639,2669.3,2668.8,0.828]
[1739927668481,3.7466,2669.1,2668.8,0.828]
[1739927668711,0.374639,2669.2,2668.9,0.10370793]
[1739927669023,13.146,2669.1,2668.9,0.10370793]
[1739927670328,6.96246238,2669.6,2669.0,3.74672]
[1739927670535,3.21651238,2669.6,2669.0,3.85084148]
[1739927670830,4.04292062,2669.6,2669.2,3.74643]
[1739927670979,4.04292062,2669.6,2669.3,0.7759]
[1739927671184,4.04292062,2669.6,2669.3,0.87990573]
[1739927671812,3.21651238,2669.9,2669.5,3.74599]
[1739927672125,3.21651238,2669.9,2669.4,7.49213]
[1739927672288,3.21651238,2669.9,2669.6,0.1037917]
[1739927672489,3.21651238,2669.9,2669.4,3.74606]
[1739927672689,3.21651238,2669.9,2669.4,3.74616]
[1739927672913,3.21651238,2669.9,2669.6,3.74579]
[1739927673118,13.143,2669.8,2669.5,0.10386303]
[1739927673316,4.15790362,2669.9,2669.4,3.74607]
[1739927673508,4.15790362,2669.9,2669.6,0.1037917]
[1739927673680,4.15790362,2669.9,2669.4,7.49215]
[1739927673899,6.96259238,2669.5,2669.0,0.7759]
[1739927674099,3.7463,2669.3,2668.8,0.7759]
[1739927674316,3.74651,2669.2,2668.8,0.7759]
[1739927674626,3.21651238,2669.1,2668.8,0.7759]
[1739927674929,7.74070162,2669.4,2668.8,0.7759]
[1739927675086,3.74648,2669.2,2668.8,0.7759]
[1739927675284,0.374648,2669.1,2668.8,0.7759]
[1739927677084,4.121228,2669.1,2668.8,0.7759]
[1739927677325,3.74701,2668.8,2668.5,0.1477727]
[1739927677537,6.96379238,2668.6,2668.5,0.1477727]
[1739927677838,13.41488562,2668.6,2668.5,0.1477727]
[1739927677989,5.38,2668.6,2668.5,0.1477727]
[1739927678190,16.36551238,2668.6,2668.5,0.1477727]
[1739927678591,3.21651238,2668.9,2668.5,0.9510727]
[1739927679622,6.96339238,2668.9,2668.5,0.9510727]
[1739927679939,3.21651238,2668.9,2668.5,0.9510727]
[1739927680743,0.374648,2669.1,2668.5,0.9510727]
[1739927681045,6.96297238,2669.2,2668.5,4.6984627]
[1739927681247,6.96297238,2669.2,2668.5,0.9510727]
[1739927681436,3.21651238,2669.2,2668.5,0.9510727]
[1739927681606,6.96299238,2669.2,2668.5,0.9510727]
[1739927681806,3.74667,2669.1,2668.5,0.9510727]
[1739927682345,6.96299238,2669.2,2668.6,0.09698066]
[1739927682753,3.21651238,2669.2,2668.6,0.09698066]
[1739927682948,6.96303238,2669.2,2668.6,0.09698066]
[1739927683149,8.35022554,2669.2,2668.6,0.09698066]
[1739927684249,4.60370554,2669.2,2668.6,0.09698066]
[1739927684447,3.74668,2669.1,2668.6,0.09698066]
[1739927684746,4.60370554,2669.2,2668.6,0.09698066]
[1739927685254,3.74674,2669.0,2668.6,0.09698066]
[1739927686620,4.58178455,2669.0,2668.6,0.09698066]
[1739927687240,8.32862455,2669.0,2668.6,0.09698066]
[1739927687417,4.58178455,2669.0,2668.6,0.09698066]
[1739927687833,0.83504455,2669.0,2668.6,0.09698066]
[1739927688153,4.58176455,2669.0,2668.6,0.09698066]
[1739927688854,8.32857455,2669.0,2668.6,0.09698066]
[1739927689055,3.74695,2668.9,2668.6,0.09698066]
[1739927689653,0.83504455,2669.0,2668.6,0.09698066]
[1739927689829,3.74677,2669.0,2668.6,0.09698066]
[1739927690024,4.60370554,2669.2,2668.6,0.09698066]
[1739927690232,3.74686,2668.9,2668.6,0.09698066]
[1739927691859,3.74714,2668.7,2668.6,0.09698066]
[1739927692159,3.74728,2668.6,2668.5,0.1477727]
[1739927692454,15.21875438,2668.6,2668.5,0.1477727]
[1739927692967,5.38,2668.6,2668.5,0.1477727]
[1739927693173,5.38,2668.6,2668.5,0.24283037]
[1739927696773,8.35016554,2669.2,2668.5,3.99025037]
[1739927696932,3.74679,2669.0,2668.5,0.24283037]
[1739927697133,3.74701,2668.8,2668.5,0.24283037]
[1739927697844,3.74728,2668.6,2668.5,0.24283037]
[1739927698442,6.96379238,2668.6,2668.5,0.1477727]
[1739927702699,3.21651238,2668.6,2668.5,0.1477727]
[1739927703186,6.96379238,2668.6,2668.5,0.24348401]
[1739927703373,6.96379238,2668.6,2668.5,0.1477727]
[1739927703576,9.95732084,2668.6,2668.5,0.1477727]
[1739927707472,6.21004084,2668.6,2668.5,0.24347968]
[1739927707672,9.95732084,2668.6,2668.5,0.1477727]
[1739927707886,9.95732084,2668.6,2668.5,0.24347968]
[1739927708312,9.95732084,2668.6,2668.5,0.1477727]
[1739927708787,9.95732084,2668.6,2668.5,0.24347968]
[1739927709403,6.21004084,2668.6,2668.5,0.24347968]
[1739927709914,9.95732084,2668.6,2668.5,0.24347968]
[1739927710115,9.95732084,2668.6,2668.5,0.1477727]
[1739927710278,9.95732084,2668.6,2668.5,0.24347968]
[1739927710478,6.21004084,2668.6,2668.5,0.24347968]
[1739927710878,9.95732084,2668.6,2668.5,0.24347968]
[1739927711119,3.21651238,2668.6,2668.5,0.24347968]
[1739927711476,3.21651238,2668.6,2668.5,0.1477727]
[1739927711893,3.21651238,2668.6,2668.5,0.24339469]
[1739927712413,6.96379238,2668.6,2668.5,0.24339469]
[1739927712792,6.96379238,2668.6,2668.5,0.1477727]
[1739927712990,9.95732184,2668.6,2668.5,0.1477727]
[1739927714993,3.74728,2668.6,2668.5,0.1477727]
[1739927715208,3.74728,2668.6,2668.5,0.24323126]
[1739927715892,3.74728,2668.6,2668.5,0.1477727]
[1739927716098,3.74728,2668.6,2668.5,0.24323779]
[1739927716754,5.38,2668.7,2668.5,0.1477727]
[1739927716924,16.89528,2668.6,2668.5,0.24323779]
[1739927717220,16.89528,2668.6,2668.5,0.1477727]
[1739927717611,16.89528,2668.6,2668.5,0.24322472]
[1739927717926,16.89528,2668.6,2668.5,0.1477727]
[1739927721151,34.63109955,2668.6,2668.5,2.7e-06]
[1739927721351,40.55500179,2668.6,2668.5,2.7e-06]
[1739927723161,20.28700179,2668.6,2668.5,2.7e-06]
[1739927723880,13.148,2668.6,2668.5,2.7e-06]
[1739927724435,13.148,2668.6,2668.5,0.09589275]
[1739927724635,13.148,2668.6,2668.5,2.7e-06]
[1739927724837,13.148,2668.6,2668.5,0.09589275]
[1739927725051,5.38,2668.7,2668.5,2.7e-06]
[1739927725266,3.74693,2668.9,2668.5,0.09589275]
[1739927725467,3.74693,2668.9,2668.5,2.7e-06]
[1739927725733,3.74693,2668.9,2668.6,0.0954983]
[1739927726988,3.74703,2668.8,2668.6,0.0954983]
[1739927727291,20.11165238,2668.7,2668.6,0.0954983]
[1739927727581,4.29728,2668.6,2668.5,2.7e-06]
[1739927727789,7.29728,2668.6,2668.5,2.7e-06]
[1739927727987,7.56928,2668.6,2668.5,2.7e-06]
[1739927728144,11.38498161,2668.6,2668.5,2.7e-06]
[1739927729488,11.38498161,2668.6,2667.5,0.3514221]
[1739927729489,3.7485,2667.8,2667.5,0.3514221]
[1739927729668,6.96501238,2667.8,2667.5,0.3514221]
[1739927729843,6.96501238,2667.8,2667.6,0.09285345]
[1739927730045,13.153,2667.7,2667.6,0.09285345]
[1739927730356,16.90154,2667.7,2667.6,0.09343441]
[1739927730660,3.74871,2667.6,2667.1,0.005]
[1739927730880,3.74905,2667.4,2667.1,0.005]
[1739927731085,3.7491,2667.3,2667.2,0.09372023]
[1739927731239,20.12061238,2667.3,2667.2,0.09372023]
[1739927731441,3.74925,2667.2,2667.1,0.005]
[1739927731753,28.77723624,2667.2,2667.1,0.005]
[1739927732596,29.57963624,2667.2,2667.1,0.005]
[1739927733090,0.55,2667.1,2666.1,0.8249]
[1739927733292,3.75079,2666.1,2666.0,0.35082224]
[1739927733451,13.17761745,2666.1,2666.0,0.35082224]
[1739927733787,3.75031,2666.5,2666.0,1.17572224]
[1739927733993,3.75079,2666.1,2666.0,0.35082224]
[1739927734198,17.46379,2666.1,2666.0,0.35082224]
[1739927734611,3.75093,2666.0,2665.9,0.1477727]
[1739927734789,6.96744238,2666.0,2665.9,0.1477727]
[1739927734989,32.04556562,2666.0,2665.9,0.1477727]
[1739927735295,3.75191,2665.4,2664.7,0.8154]
[1739927735508,3.21651238,2665.0,2664.6,0.55]
[1739927735790,13.168,2664.9,2664.6,0.55]
[1739927736088,6.96807238,2665.6,2664.8,3.75261]
[1739927736290,6.96807238,2665.6,2665.1,3.75218]
[1739927736291,3.21651238,2665.6,2665.1,3.75218]
[1739927736497,3.21651238,2665.9,2665.2,0.7863]
[1739927736804,3.75109,2665.9,2665.2,0.7863]
[1739927737009,10.43149069,2666.0,2665.2,0.7863]
[1739927737311,3.75139,2665.7,2665.2,0.7863]
[1739927737663,14.18245069,2666.0,2665.2,0.7863]
[1739927737867,11.90473576,2666.0,2665.2,0.7863]
[1739927738490,11.12313576,2666.0,2665.2,0.7863]
[1739927738679,11.12313576,2666.0,2665.3,3.75191]
[1739927738875,5.38,2666.0,2665.2,4.53826]
[1739927739537,3.99089069,2665.3,2664.6,0.55]
[1739927739733,0.281,2665.5,2664.8,3.75261]
[1739927739945,6.1616,2666.0,2664.9,0.7863]
[1739927740087,6.1616,2666.0,2665.3,0.7863]
[1739927740088,5.38,2666.0,2665.3,0.7863]
[1739927740294,9.37089069,2666.0,2665.4,0.09236216]
[1739927740492,0.7816,2665.6,2665.5,0.08899196]
[1739927740820,0.7816,2665.5,2664.6,0.55]
[1739927740992,3.99089069,2665.1,2664.6,0.55]
[1739927741419,4.27689069,2665.4,2664.7,0.08638629]
[1739927741606,0.286,2665.4,2664.7,3.83903629]
[1739927742006,0.286,2665.4,2664.7,0.08638629]
[1739927742201,0.47724907,2665.6,2665.0,3.75233]
[1739927742434,5.38,2665.8,2664.7,0.08638629]
[1739927742637,3.99089069,2666.0,2665.2,3.75193]
[1739927742836,3.99089069,2666.3,2665.4,3.75167]
[1739927743240,3.99089069,2666.3,2665.5,0.08581367]
[1739927743593,3.99089069,2666.3,2665.6,0.7757]
[1739927743924,3.99089069,2666.3,2665.7,0.08567057]
[1739927744124,0.48106907,2666.2,2665.6,0.7757]
[1739927744346,0.48106907,2666.2,2665.7,0.08567057]
[1739927746546,4.3447,2665.9,2665.7,0.08253939]
[1739927746841,3.55,2665.7,2664.5,0.7642]
[1739927747058,3.99089069,2665.0,2664.5,0.7642]
[1739927747543,1.3447,2665.2,2664.6,0.08045074]
[1739927747750,1.87825907,2665.2,2664.6,0.08045074]
[1739927749044,0.55,2665.0,2664.6,0.08045074]
[1739927749248,4.54089069,2665.0,2664.6,0.08045074]
[1739927749617,4.54089069,2665.0,2664.2,0.8176]
[1739927749819,1.32825907,2665.2,2663.8,0.8176]
[1739927749820,0.55,2664.6,2663.8,0.8176]
[1739927750160,0.8062,2664.3,2663.3,3.75471]
[1739927750367,0.55,2663.7,2663.2,0.1477727]
[1739927750569,3.0,2663.4,2663.2,0.1477727]
[1739927750730,5.09720907,2663.4,2663.2,0.1477727]
[1739927751065,13.176,2663.3,2663.2,0.1477727]
[1739927751368,1.3062,2663.2,2662.1,0.005]
[1739927751559,3.99089069,2662.2,2662.1,0.005]
[1739927751749,13.181,2662.2,2662.1,0.005]
[1739927751944,3.99089069,2663.0,2662.2,0.7601]
[1739927752162,3.99089069,2663.3,2662.4,3.75599]
[1739927752456,3.99089069,2663.3,2662.4,3.75596]
[1739927752457,0.55,2663.1,2662.4,3.75596]
[1739927752662,0.55,2663.1,2662.2,0.7601]
[1739927752867,0.7527,2663.5,2662.2,0.7601]
[1739927753162,3.99089069,2663.6,2662.7,3.75549]
[1739927753465,3.99089069,2663.6,2662.2,6.1201]
[1739927753767,0.7751,2663.1,2662.2,0.7601]
[1739927754166,0.7751,2663.1,2662.4,3.75597]
[1739927754525,4.30517,2663.0,2662.3,0.08209905]
[1739927754676,4.30517,2663.0,2662.5,0.0839551]
[1739927754828,0.55,2662.8,2662.4,0.08402682]
[1739927755033,0.55,2662.8,2662.3,3.75613]
[1739927755233,0.55,2662.8,2662.5,0.0839551]
[1739927755436,13.178,2662.7,2662.4,3.75599]
[1739927755636,13.178,2662.7,2662.1,0.005]
[1739927755637,0.55,2662.6,2662.1,0.005]
[1739927756045,4.30559,2662.7,2662.1,0.005]
[1739927756248,0.7751,2663.1,2662.4,3.75599]
[1739927756477,4.75919069,2663.6,2662.3,0.7546]
[1739927756680,3.75407,2663.8,2662.3,6.1146]
[1739927756865,0.750797,2663.7,2663.1,3.75497]
[1739927757079,3.7539,2663.9,2663.1,3.75498]
[1739927757279,3.7539,2663.9,2663.2,0.08553778]
[1739927757703,0.7683,2664.0,2663.3,3.75463]
[1739927758054,0.7683,2664.0,2663.4,0.08539443]
[1739927758249,3.0,2664.0,2663.4,0.08539443]
[1739927758452,3.675372,2664.0,2663.2,0.7524]
[1739927758679,4.54963,2664.3,2663.3,3.75461]
[1739927758896,4.54963,2664.3,2663.3,3.8400761]
[1739927758897,3.75357,2664.2,2663.3,3.8400761]
[1739927759079,0.55,2663.9,2663.3,0.0854661]
[1739927759292,4.30425,2663.7,2663.3,0.0854661]
[1739927759473,7.259855,2663.6,2662.7,3.75558]
[1739927759671,0.55,2663.5,2662.5,0.83]
[1739927759969,0.55,2663.5,2663.0,3.75515]
[1739927760370,0.75,2663.8,2663.1,3.83673178]
[1739927760371,3.75,2663.8,2663.1,3.83673178]
[1739927760705,4.30434,2663.6,2663.1,0.08172178]
[1739927760853,3.55,2663.6,2663.1,0.08172178]
[1739927761196,0.55,2663.6,2663.2,0.08174801]
[1739927761499,13.175,2663.5,2662.8,3.75534]
[1739927761669,3.75435,2663.6,2663.3,0.08167634]
[1739927762050,0.55,2663.4,2662.8,3.75534]
[1739927762204,0.5254743,2663.6,2662.9,3.75528]
[1739927762361,0.5254743,2663.6,2663.0,3.75514]
[1739927762704,0.5254743,2663.6,2663.1,3.755]
[1739927762870,3.75398,2663.9,2663.2,0.8153]
[1739927763058,3.0,2663.8,2663.2,0.8153]
[1739927764169,5.38,2664.0,2663.2,4.57015]
[1739927764369,9.13377,2664.0,2663.3,3.75473]
[1739927764568,6.747386,2664.0,2663.5,3.75445]
[1739927764784,5.38,2664.0,2663.7,3.75416]
[1739927764990,5.38,2664.0,2663.5,3.75445]
[1739927765169,5.38,2664.0,2663.4,3.75456]
[1739927765369,5.38,2664.0,2663.5,3.75436]
[1739927765690,10.39395907,2664.5,2663.8,0.7945]
[1739927765906,1.03939591,2664.4,2663.9,3.75378]
[1739927766282,4.03939591,2664.4,2663.9,3.75378]
[1739927766919,4.03939591,2664.4,2663.8,0.7945]
[1739927767103,4.03939591,2664.4,2663.9,3.75383]
[1739927767306,4.03939591,2664.4,2663.9,3.75388]
[1739927767879,4.03939591,2664.4,2663.9,3.75378]
[1739927768122,1.03939591,2664.4,2663.9,3.75378]
[1739927768328,4.51241,2664.9,2664.1,3.75349]
[1739927768490,0.7599,2664.9,2664.0,3.75375]
[1739927768689,5.38,2665.0,2664.4,7.50618]
[1739927768905,5.91355907,2665.2,2664.6,3.75286]
[1739927769105,5.91355907,2665.2,2664.6,3.75282]
[1739927769307,5.91355907,2665.2,2664.7,3.75266]
[1739927769554,5.38,2665.2,2664.9,3.75242]
[1739927769714,13.166,2665.1,2664.9,3.75239]
[1739927769908,3.0,2665.5,2664.7,3.75265]
[1739927770113,9.96403,2665.6,2664.9,3.7524]
[1739927770438,3.0,2665.5,2664.9,3.7524]
[1739927770587,3.0,2665.5,2664.9,3.75239]
[1739927770930,6.2125,2665.6,2664.9,3.75238]
[1739927771530,5.38,2665.6,2665.1,3.75219]
[1739927771701,5.38,2665.6,2665.1,3.75211]
[1739927772026,5.38,2665.6,2665.2,4.64172982]
[1739927772224,5.38,2665.6,2665.2,0.88966982]
[1739927773748,3.75192,2665.3,2665.2,0.08026982]
[1739927773950,21.79322,2665.5,2665.2,0.08026982]
[1739927774103,3.75181,2665.4,2664.7,3.75271]
[1739927774298,3.75181,2665.4,2664.6,4.51608]
[1739927774299,8.07818,2665.5,2664.8,3.75253]
[1739927774555,4.3265,2665.5,2664.8,0.07929068]
[1739927774703,3.75207,2665.2,2664.8,0.07929068]
[1739927775018,8.47433,2665.4,2664.9,0.07921909]
[1739927775201,0.97065,2665.4,2664.6,0.7632]
[1739927775401,4.72253,2665.4,2665.0,0.07914751]
[1739927775641,8.47443,2665.4,2664.6,4.51598]
[1739927775842,1.280093,2665.3,2665.1,0.07907593]
[1739927776045,4.3022,2665.1,2664.3,6.1232]
[1739927776217,4.3022,2665.1,2663.7,3.75413]
[1739927776218,0.55,2664.9,2664.1,0.74848485]
[1739927776417,3.75278,2664.7,2664.0,4.51688]
[1739927777351,3.75299,2664.6,2664.0,4.51691]
[1739927777555,3.75299,2664.6,2664.0,0.7632]
[1739927777556,0.750561,2664.6,2664.0,0.7632]
[1739927777715,3.75342,2664.3,2663.6,4.52723]
[1739927778044,3.75362,2664.1,2663.7,0.76599554]
[1739927778247,3.75362,2664.1,2663.3,0.8118]
[1739927778248,3.75398,2663.9,2663.3,0.8118]
[1739927779240,0.55,2664.0,2663.3,0.8118]
[1739927779443,3.75391,2663.9,2663.3,0.8118]
[1739927779637,4.559664,2663.9,2663.3,0.8118]
[1739927780349,8.313684,2663.9,2663.3,0.8118]
[1739927780551,0.55,2663.8,2663.0,4.58206]
[1739927780757,3.75426,2663.7,2663.1,3.75501]
[1739927781184,3.75426,2663.7,2663.0,0.827]
[1739927781328,4.2102614,2663.7,2663.0,0.827]
[1739927782245,3.75435,2663.6,2663.0,0.827]
[1739927782767,0.4560014,2663.7,2663.0,4.58215]
[1739927783145,0.4560014,2663.7,2663.0,0.827]
[1739927783348,3.75465,2663.4,2663.0,0.827]
[1739927783733,3.0,2663.6,2663.0,0.827]
[1739927783930,0.80338314,2663.5,2663.0,0.827]
[1739927784282,0.80338314,2663.5,2663.0,4.58204]
[1739927784577,0.4560014,2663.7,2663.0,0.827]
[1739927784788,3.75405,2663.8,2663.1,3.75494]
[1739927784996,3.75422,2663.7,2663.1,3.75494]
[1739927785688,3.75422,2663.7,2663.0,0.827]
[1739927785689,3.75449,2663.5,2663.0,0.827]
[1739927785991,0.750871,2663.5,2663.2,3.75486]
[1739927786193,9.13396,2663.9,2663.2,3.75486]
[1739927786345,9.13396,2663.9,2663.2,3.7548]
[1739927786675,3.75425,2663.7,2663.0,4.58208]
[1739927786879,3.75425,2663.7,2663.1,3.75493]
[1739927787190,3.7546,2663.4,2663.1,0.08138239]
[1739927787688,13.175,2663.3,2663.1,0.08138239]
[1739927787857,3.75488,2663.2,2663.1,0.08138239]
[1739927788057,3.7551,2663.1,2662.5,0.74122309]
[1739927788293,3.75488,2663.2,2663.1,0.08134976]
[1739927788465,3.75509,2663.1,2662.5,4.49700309]
[1739927788665,4.20563621,2663.1,2662.5,4.49700309]
[1739927788902,3.75523,2663.0,2662.5,0.74122309]
[1739927789580,0.45054621,2663.1,2662.5,8.25283309]
[1739927789775,4.20558621,2663.1,2662.5,4.49699309]
[1739927790086,4.20558621,2663.1,2662.4,0.7833]
[1739927790087,3.75518,2663.0,2662.4,0.7833]
[1739927790296,4.17575262,2663.0,2662.4,4.53929]
[1739927790468,0.42057262,2663.0,2662.5,3.75585]
[1739927790670,3.75475,2663.3,2662.7,3.75554]
[1739927791186,5.312047,2663.4,2662.7,3.75554]
[1739927791509,3.75498,2663.2,2662.4,4.53929]
[1739927791800,7.50998,2663.2,2662.5,3.75577]
[1739927792146,3.75506,2663.1,2662.5,7.51155]
[1739927792267,4.506064,2663.1,2662.5,3.75577]
[1739927792465,0.751004,2663.1,2662.5,3.75577]
[1739927792675,1.557397,2663.4,2662.4,0.7833]
[1739927792903,9.13433,2663.6,2663.0,3.75508]
[1739927793399,3.75453,2663.5,2663.0,3.75508]
[1739927793581,9.13433,2663.6,2663.0,3.75508]
[1739927794472,3.75425,2663.7,2663.0,3.75503]
[1739927794687,3.75425,2663.7,2663.1,3.75497]
[1739927794851,5.124338,2663.7,2663.1,3.75497]
[1739927795068,5.124338,2663.7,2663.1,3.75307261]
[1739927795403,1.370088,2663.7,2662.7,4.5757]
[1739927795583,5.38,2663.9,2663.3,3.75472]
[1739927795913,9.13393,2663.9,2663.4,0.773]
[1739927796097,3.75406,2663.8,2663.4,0.773]
[1739927797007,5.38,2663.9,2663.5,0.08154607]
[1739927797311,6.12774046,2663.9,2663.5,0.08154607]
[1739927797682,5.38,2663.9,2663.5,3.83596607]
[1739927797892,3.75386,2664.0,2663.5,0.08154607]
[1739927798092,4.51469,2664.1,2663.5,0.08154607]
[1739927798294,3.75386,2664.0,2663.5,0.08154607]
[1739927798683,5.38,2664.2,2663.8,3.75401]
[1739927798862,3.75369,2664.1,2663.6,3.83570441]
[1739927799061,3.75385,2664.0,2663.9,0.08107671]
[1739927799376,16.92485,2664.0,2663.5,3.75445]
[1739927799770,3.75385,2664.0,2663.5,3.75445]
[1739927799969,3.75385,2664.0,2663.6,0.08129166]
[1739927800420,3.75385,2664.0,2663.5,3.75442]
[1739927800620,3.75385,2664.0,2663.7,0.08122]
[1739927800822,4.74377,2664.2,2663.7,3.83538]
[1739927801334,8.49733,2664.2,2663.7,3.83538]
[1739927801557,4.74377,2664.2,2663.7,3.83538]
[1739927802335,4.74377,2664.2,2663.7,0.08122]
[1739927802554,5.38,2664.3,2663.8,3.75403]
[1739927802752,5.38,2664.3,2663.8,7.50799]
[1739927802919,3.75298,2664.6,2663.9,0.08052848]
[1739927803233,3.75298,2664.6,2664.0,4.56633]
[1739927803434,3.75313,2664.5,2664.0,0.89305032]
[1739927804467,4.503891,2664.4,2664.0,0.08045032]
[1739927804676,4.503891,2664.4,2663.8,9.01002667]
[1739927804871,4.503891,2664.4,2664.1,0.08037869]
[1739927805076,4.503891,2664.4,2663.8,9.01002667]
[1739927805370,3.75312,2664.5,2664.2,0.08030706]
[1739927805573,3.75312,2664.5,2663.9,3.75379]
[1739927805774,3.75312,2664.5,2664.3,0.08023544]
[1739927805986,13.169,2664.4,2663.9,3.75379]
[1739927806163,3.75312,2664.5,2663.9,3.75379]
[1739927806370,4.88659,2664.5,2663.9,3.75379]
[1739927806676,3.75298,2664.6,2664.0,3.75366]
[1739927806889,3.75306,2664.5,2664.0,3.75366]
[1739927807580,0.8286,2664.7,2664.0,3.75366]
[1739927807885,3.75292,2664.6,2664.0,7.50732]
[1739927808082,3.75292,2664.6,2664.1,3.75359]
[1739927808271,5.124344,2664.6,2664.0,3.75366]
[1739927808667,5.124344,2664.6,2664.1,3.75357]
[1739927809152,0.8181,2665.0,2664.3,3.75324]
[1739927809357,0.8181,2665.0,2664.3,4.57984]
[1739927809563,3.7525,2664.9,2664.3,4.57984]
[1739927810683,3.7525,2664.9,2664.3,0.8266]
[1739927810883,3.75274,2664.8,2664.3,4.57991]
[1739927811083,4.20956,2664.9,2664.3,4.57991]
[1739927811247,0.45706,2664.9,2664.4,3.75306]
[1739927811443,3.7523,2665.1,2664.3,0.8266]
[1739927811645,5.032023,2665.3,2664.8,3.75262]
[1739927811883,13.167,2665.2,2664.7,3.75275]
[1739927812196,3.75223,2665.1,2664.5,7.50596]
[1739927812366,3.75206,2665.2,2664.4,3.75319]
[1739927812571,3.75206,2665.2,2664.6,3.75283]
[1739927813088,5.032023,2665.3,2664.7,3.75266]
[1739927813390,5.032023,2665.3,2664.8,3.75261]
[1739927813886,1.280093,2665.3,2664.9,3.75248]
[1739927814190,4.56082,2665.5,2664.8,0.8112]
[1739927814392,3.752,2665.3,2664.8,0.8112]
[1739927814892,4.56082,2665.5,2664.8,0.8112]
[1739927815076,4.56082,2665.5,2664.9,3.75245]
[1739927815276,4.56082,2665.5,2664.8,0.8112]
[1739927815473,3.75199,2665.3,2664.8,0.8112]
[1739927815646,3.75199,2665.3,2664.8,4.56381]
[1739927816290,4.745862,2665.4,2664.8,4.56382]
[1739927816644,0.994082,2665.4,2664.9,3.75238]
[1739927817049,0.994082,2665.4,2665.0,0.07796676]
[1739927817492,4.745862,2665.4,2665.0,0.07796676]
[1739927817790,0.9306602,2665.3,2665.0,0.07796676]
[1739927817948,3.8091,2665.5,2665.0,3.83020676]
[1739927818498,3.0,2665.5,2665.0,3.83020676]
[1739927818701,5.38,2665.6,2665.0,3.83020676]
[1739927818889,5.38,2665.6,2665.1,3.75213]
[1739927819222,5.38,2665.6,2665.2,3.75198]
[1739927819385,5.38,2665.6,2665.2,3.82980361]
[1739927820616,5.38,2665.6,2665.2,0.07782361]
[1739927820823,3.7801,2665.8,2665.3,0.8142]
[1739927821027,0.43301,2665.8,2665.4,3.75176]
[1739927821223,3.751,2666.0,2665.4,3.75168]
[1739927821376,3.751,2666.0,2665.4,7.58082887]
[1739927821717,9.13081,2666.1,2665.6,3.75149]
[1739927822014,4.30074,2666.2,2665.4,0.07745887]
[1739927822015,3.75104,2666.0,2665.4,0.07745887]
[1739927822321,3.0,2666.2,2665.4,0.07745887]
[1739927822322,6.75073,2666.2,2665.4,3.75177]
[1739927822475,7.508973,2666.2,2665.6,3.75142]
[1739927823029,3.758243,2666.2,2665.7,0.87623995]
[1739927823221,4.58211,2666.4,2665.7,0.87623995]
[1739927823222,0.8317,2666.4,2665.7,0.87623995]
[1739927823390,4.58209,2666.4,2665.7,4.62758995]
[1739927823576,4.58209,2666.4,2665.9,3.75106]